[Event "Late-Titled-Tuesday-Blitz-January-30-2024"]
[Site "Chess.com"]
[Date "2024.01.30"]
[Round "7"]
[White "Herman-NY"]
[Black "dennisodessa"]
[Result "0-1"]
[WhiteElo "2483"]
[BlackElo "2607"]
[TimeControl "180+1"]
[EndTime "15:16:08 PST"]
[Termination "dennisodessa won on time"]

1. e4 {[%clk 0:03:00.9]} 1... e6 {[%clk 0:03:00.1]} 2. d4 {[%clk 0:03:00.9]}
2... d5 {[%clk 0:03:00.2]} 3. Nd2 {[%clk 0:03:01.7]} 3... Be7 {[%clk 0:02:59.9]}
4. Ngf3 {[%clk 0:03:01.4]} 4... Nf6 {[%clk 0:03:00.5]} 5. e5 {[%clk 0:03:01.2]}
5... Nfd7 {[%clk 0:03:01.2]} 6. c3 {[%clk 0:02:58.3]} 6... c5 {[%clk 0:03:02.1]}
7. Bd3 {[%clk 0:02:58.4]} 7... Nc6 {[%clk 0:03:03]} 8. a3 {[%clk 0:02:57.1]}
8... cxd4 {[%clk 0:02:52.5]} 9. cxd4 {[%clk 0:02:56.6]} 9... f6 {[%clk
0:02:53.4]} 10. exf6 {[%clk 0:02:51.6]} 10... Nxf6 {[%clk 0:02:54.3]} 11. O-O
{[%clk 0:02:32.4]} 11... O-O {[%clk 0:02:55.2]} 12. Re1 {[%clk 0:02:21.9]} 12...
Bd6 {[%clk 0:02:53.5]} 13. Nf1 {[%clk 0:02:14.6]} 13... Qb6 {[%clk 0:02:50.1]}
14. Ng3 {[%clk 0:02:04.9]} 14... Ng4 {[%clk 0:02:42.3]} 15. b4 {[%clk
0:01:31.5]} 15... e5 {[%clk 0:02:32.9]} 16. Qb3 {[%clk 0:00:58.4]} 16... Nxd4
{[%clk 0:02:29]} 17. Qxd5+ {[%clk 0:00:17.4]} 17... Be6 {[%clk 0:02:28]} 18.
Qxd4 {[%clk 0:00:17]} 18... exd4 {[%clk 0:02:23.9]} 19. Rxe6 {[%clk 0:00:17.1]}
19... Rae8 {[%clk 0:01:56.2]} 20. Rxe8 {[%clk 0:00:12.8]} 20... Rxe8 {[%clk
0:01:57.1]} 21. Bd2 {[%clk 0:00:10.4]} 21... Ne5 {[%clk 0:01:48.1]} 22. Nxe5
{[%clk 0:00:10.4]} 22... Bxe5 {[%clk 0:01:49]} 23. Ne4 {[%clk 0:00:07.2]} 23...
Rc8 {[%clk 0:01:36.6]} 24. Re1 {[%clk 0:00:03.4]} 24... Bd6 {[%clk 0:01:33.3]}
25. g3 {[%clk 0:00:02.7]} 25... h6 {[%clk 0:01:29.3]} 26. h4 {[%clk 0:00:01.9]}
26... Bf8 {[%clk 0:01:29.2]} 27. Re2 {[%clk 0:00:01.3]} 27... Qc6 {[%clk
0:01:24.1]} 28. Kg2 {[%clk 0:00:01.3]} 28... Qd5 {[%clk 0:01:24.6]} 0-1

[Event "Late-Titled-Tuesday-Blitz-January-30-2024"]
[Site "Chess.com"]
[Date "2024.01.30"]
[Round "7"]
[White "platy3"]
[Black "IlanSchnaider"]
[Result "1-0"]
[WhiteElo "2865"]
[BlackElo "2669"]
[TimeControl "180+1"]
[EndTime "15:16:22 PST"]
[Termination "platy3 won on time"]

1. e4 {[%clk 0:03:00.9]} 1... c5 {[%clk 0:02:59.2]} 2. Nf3 {[%clk 0:03:00.9]}
2... d6 {[%clk 0:02:59.8]} 3. Bb5+ {[%clk 0:03:01]} 3... Bd7 {[%clk 0:02:59.9]}
4. Bxd7+ {[%clk 0:03:00.6]} 4... Qxd7 {[%clk 0:03:00.6]} 5. O-O {[%clk 0:03:01]}
5... Nf6 {[%clk 0:03:00.6]} 6. Qe2 {[%clk 0:03:00.3]} 6... Nc6 {[%clk 0:03:00]}
7. c3 {[%clk 0:02:59.7]} 7... e6 {[%clk 0:03:00.2]} 8. d4 {[%clk 0:03:00.1]}
8... cxd4 {[%clk 0:03:00.2]} 9. cxd4 {[%clk 0:03:01]} 9... d5 {[%clk 0:03:00.9]}
10. e5 {[%clk 0:03:01.6]} 10... Ne4 {[%clk 0:03:01.5]} 11. Nbd2 {[%clk
0:03:02.2]} 11... Nxd2 {[%clk 0:03:02]} 12. Bxd2 {[%clk 0:03:03.1]} 12... Bb4
{[%clk 0:03:02.2]} 13. g3 {[%clk 0:03:03.9]} 13... O-O {[%clk 0:02:57.7]} 14.
Be3 {[%clk 0:03:01.7]} 14... Rfc8 {[%clk 0:02:53.6]} 15. a3 {[%clk 0:03:01.3]}
15... Be7 {[%clk 0:02:48.6]} 16. b4 {[%clk 0:03:01.5]} 16... a5 {[%clk
0:02:29.1]} 17. b5 {[%clk 0:03:00.2]} 17... Na7 {[%clk 0:02:29.7]} 18. a4 {[%clk
0:03:00.2]} 18... b6 {[%clk 0:02:25.9]} 19. h4 {[%clk 0:02:58.3]} 19... Rc4
{[%clk 0:02:19.6]} 20. h5 {[%clk 0:02:58.3]} 20... h6 {[%clk 0:02:19.5]} 21. Nh2
{[%clk 0:02:58]} 21... Rac8 {[%clk 0:02:14.9]} 22. Qg4 {[%clk 0:02:57.8]} 22...
Kh7 {[%clk 0:02:06.9]} 23. Nf3 {[%clk 0:02:57.6]} 23... Qe8 {[%clk 0:01:56.1]}
24. Qf4 {[%clk 0:02:34.7]} 24... R8c7 {[%clk 0:01:33.4]} 25. g4 {[%clk
0:02:32.5]} 25... Nc8 {[%clk 0:01:33.7]} 26. Rfc1 {[%clk 0:02:26.6]} 26... Qf8
{[%clk 0:01:10.4]} 27. Rxc4 {[%clk 0:02:25.8]} 27... Rxc4 {[%clk 0:01:08.6]} 28.
Rc1 {[%clk 0:02:24.6]} 28... Rxa4 {[%clk 0:00:51.2]} 29. Rxc8 {[%clk 0:01:49.2]}
29... Qxc8 {[%clk 0:00:50]} 30. Qxf7 {[%clk 0:01:49.9]} 30... Qf8 {[%clk
0:00:42.1]} 31. Qg6+ {[%clk 0:01:49.5]} 31... Kh8 {[%clk 0:00:38.6]} 32. Kg2
{[%clk 0:01:50]} 32... Ra3 {[%clk 0:00:24.3]} 33. Qxe6 {[%clk 0:01:47]} 33...
Bg5 {[%clk 0:00:20.5]} 34. Nxg5 {[%clk 0:01:40.9]} 34... hxg5 {[%clk 0:00:20.9]}
35. Qd6 {[%clk 0:01:38.5]} 35... Kg8 {[%clk 0:00:11.7]} 36. Qxd5+ {[%clk
0:01:38.2]} 36... Qf7 {[%clk 0:00:08.4]} 37. e6 {[%clk 0:01:38]} 37... Qe8
{[%clk 0:00:05.3]} 38. e7+ {[%clk 0:01:35.9]} 38... Kh8 {[%clk 0:00:04.3]} 39.
Qd8 {[%clk 0:01:35.2]} 1-0

[Event "Late-Titled-Tuesday-Blitz-January-30-2024"]
[Site "Chess.com"]
[Date "2024.01.30"]
[Round "7"]
[White "Bryanl106"]
[Black "RianKapriaga"]
[Result "0-1"]
[WhiteElo "2526"]
[BlackElo "2363"]
[TimeControl "180+1"]
[EndTime "15:16:26 PST"]
[Termination "RianKapriaga won by resignation"]

1. e4 {[%clk 0:03:00.9]} 1... c6 {[%clk 0:02:56.3]} 2. d4 {[%clk 0:02:59.7]}
2... d5 {[%clk 0:02:56.5]} 3. exd5 {[%clk 0:02:59.2]} 3... cxd5 {[%clk 0:02:57]}
4. Nf3 {[%clk 0:03:00.1]} 4... Nf6 {[%clk 0:02:52.9]} 5. Ne5 {[%clk 0:03:00]}
5... Nbd7 {[%clk 0:02:48.2]} 6. Bd3 {[%clk 0:02:58.2]} 6... e6 {[%clk
0:02:46.5]} 7. Nd2 {[%clk 0:02:56.5]} 7... Bd6 {[%clk 0:02:44]} 8. Ndf3 {[%clk
0:02:55.7]} 8... O-O {[%clk 0:02:39.6]} 9. O-O {[%clk 0:02:55.6]} 9... Qc7
{[%clk 0:02:32.3]} 10. Re1 {[%clk 0:02:55.4]} 10... b6 {[%clk 0:02:30.7]} 11. c3
{[%clk 0:02:53.4]} 11... a5 {[%clk 0:02:29.8]} 12. Qe2 {[%clk 0:02:50.2]} 12...
Nb8 {[%clk 0:02:23.4]} 13. g4 {[%clk 0:02:43.4]} 13... Ba6 {[%clk 0:02:21.7]}
14. Bxa6 {[%clk 0:02:39.9]} 14... Nxa6 {[%clk 0:02:21]} 15. g5 {[%clk
0:02:40.8]} 15... Nd7 {[%clk 0:02:19]} 16. Bf4 {[%clk 0:02:38.3]} 16... Nab8
{[%clk 0:02:16.9]} 17. Bg3 {[%clk 0:02:35.6]} 17... Nc6 {[%clk 0:02:13.5]} 18.
Nxd7 {[%clk 0:02:34.9]} 18... Qxd7 {[%clk 0:02:12.9]} 19. Kg2 {[%clk 0:02:31.1]}
19... Rfb8 {[%clk 0:02:01.4]} 20. a4 {[%clk 0:02:27.1]} 20... Rb7 {[%clk
0:01:57.2]} 21. h4 {[%clk 0:02:23.3]} 21... Rab8 {[%clk 0:01:56.4]} 22. h5
{[%clk 0:02:22.8]} 22... Bxg3 {[%clk 0:01:45.1]} 23. Kxg3 {[%clk 0:02:20.7]}
23... b5 {[%clk 0:01:31.9]} 24. axb5 {[%clk 0:02:16.1]} 24... Rxb5 {[%clk
0:01:30.8]} 25. Ra2 {[%clk 0:02:13.5]} 25... Qd6+ {[%clk 0:01:20.7]} 26. Kg4
{[%clk 0:02:12]} 26... g6 {[%clk 0:01:11.3]} 27. hxg6 {[%clk 0:02:11]} 27...
hxg6 {[%clk 0:01:08.6]} 28. Rh1 {[%clk 0:02:06.1]} 28... R5b7 {[%clk 0:00:55.7]}
29. Ne5 {[%clk 0:02:00.5]} 29... Nxe5+ {[%clk 0:00:52.9]} 30. dxe5 {[%clk
0:02:01.4]} 30... Qc5 {[%clk 0:00:50.6]} 31. f4 {[%clk 0:01:59.4]} 31... Kf8
{[%clk 0:00:44.4]} 32. b4 {[%clk 0:01:47.9]} 32... axb4 {[%clk 0:00:38.9]} 33.
cxb4 {[%clk 0:01:48]} 33... Qc4 {[%clk 0:00:33.4]} 34. Qh2 {[%clk 0:01:44]}
34... Rxb4 {[%clk 0:00:22.4]} 35. Qh8+ {[%clk 0:01:42.5]} 35... Ke7 {[%clk
0:00:21.7]} 36. Qf6+ {[%clk 0:01:42.5]} 36... Kd7 {[%clk 0:00:17.6]} 37. Qxf7+
{[%clk 0:01:42.8]} 37... Kc6 {[%clk 0:00:17.2]} 38. Qxe6+ {[%clk 0:01:43.2]}
38... Kb5 {[%clk 0:00:16.1]} 39. Rha1 {[%clk 0:01:38.7]} 39... Qxf4+ {[%clk
0:00:14.9]} 40. Kh3 {[%clk 0:01:34.6]} 40... Rb3+ {[%clk 0:00:12.6]} 41. Kg2
{[%clk 0:01:33.4]} 41... Rg3+ {[%clk 0:00:11.4]} 0-1

[Event "Late-Titled-Tuesday-Blitz-January-30-2024"]
[Site "Chess.com"]
[Date "2024.01.30"]
[Round "7"]
[White "Korchmar_Vasiliy"]
[Black "Jospem"]
[Result "0-1"]
[WhiteElo "2718"]
[BlackElo "3051"]
[TimeControl "180+1"]
[EndTime "15:16:28 PST"]
[Termination "Jospem won on time"]

1. Nf3 {[%clk 0:03:00.9]} 1... c5 {[%clk 0:02:58]} 2. g3 {[%clk 0:02:58.3]} 2...
Nc6 {[%clk 0:02:58]} 3. Bg2 {[%clk 0:02:57.6]} 3... g6 {[%clk 0:02:58.4]} 4. O-O
{[%clk 0:02:52]} 4... Bg7 {[%clk 0:02:57.8]} 5. c4 {[%clk 0:02:50.6]} 5... d6
{[%clk 0:02:48.6]} 6. Nc3 {[%clk 0:02:50.2]} 6... e6 {[%clk 0:02:44.8]} 7. d3
{[%clk 0:02:46.2]} 7... Nge7 {[%clk 0:02:45]} 8. Bd2 {[%clk 0:02:44.3]} 8... O-O
{[%clk 0:02:45.4]} 9. a3 {[%clk 0:02:43.8]} 9... b6 {[%clk 0:02:45.1]} 10. Rb1
{[%clk 0:02:43.5]} 10... Bb7 {[%clk 0:02:45.8]} 11. b4 {[%clk 0:02:43.5]} 11...
Qd7 {[%clk 0:02:46.6]} 12. Qc1 {[%clk 0:02:35.1]} 12... Nd4 {[%clk 0:02:46.7]}
13. Nxd4 {[%clk 0:02:29.1]} 13... cxd4 {[%clk 0:02:47.6]} 14. Ne4 {[%clk
0:02:16.8]} 14... d5 {[%clk 0:02:47.8]} 15. cxd5 {[%clk 0:02:13.2]} 15... Nxd5
{[%clk 0:02:48.7]} 16. Bh6 {[%clk 0:02:04]} 16... Rac8 {[%clk 0:02:48.4]} 17.
Qd2 {[%clk 0:01:56.1]} 17... Nc3 {[%clk 0:02:41.7]} 18. Bxg7 {[%clk 0:01:52]}
18... Kxg7 {[%clk 0:02:37]} 19. Rbc1 {[%clk 0:01:40.3]} 19... Bxe4 {[%clk
0:02:36.2]} 20. Bxe4 {[%clk 0:01:37.2]} 20... e5 {[%clk 0:02:35.1]} 21. h4
{[%clk 0:01:33.4]} 21... h6 {[%clk 0:02:31.6]} 22. Bg2 {[%clk 0:01:30.6]} 22...
Rc7 {[%clk 0:02:30.9]} 23. e3 {[%clk 0:01:27.6]} 23... Rfc8 {[%clk 0:02:29.5]}
24. Rce1 {[%clk 0:01:27.3]} 24... Qd6 {[%clk 0:02:25.4]} 25. f4 {[%clk
0:01:01.8]} 25... Re8 {[%clk 0:02:20.9]} 26. f5 {[%clk 0:00:49.9]} 26... f6
{[%clk 0:02:19.6]} 27. fxg6 {[%clk 0:00:48.1]} 27... dxe3 {[%clk 0:02:20.1]} 28.
Qxe3 {[%clk 0:00:43.8]} 28... Rd8 {[%clk 0:02:20.6]} 29. Qf2 {[%clk 0:00:31.8]}
29... Qd4 {[%clk 0:02:16.1]} 30. Re3 {[%clk 0:00:30.3]} 30... Rd6 {[%clk
0:02:12.1]} 31. Kh2 {[%clk 0:00:28.7]} 31... Qg4 {[%clk 0:01:41]} 32. Rxe5
{[%clk 0:00:24.2]} 32... Qxg6 {[%clk 0:01:34.7]} 33. Rf5 {[%clk 0:00:17.5]}
33... Re7 {[%clk 0:01:35.3]} 34. Qf4 {[%clk 0:00:08.7]} 34... Rde6 {[%clk
0:01:36]} 35. Qd4 {[%clk 0:00:06.3]} 35... Qxg3+ {[%clk 0:01:25.2]} 36. Kh1
{[%clk 0:00:02.9]} 36... Ne2 {[%clk 0:01:25.7]} 37. Qf2 {[%clk 0:00:02]} 37...
Qxf2 {[%clk 0:01:26]} 0-1

[Event "Late-Titled-Tuesday-Blitz-January-30-2024"]
[Site "Chess.com"]
[Date "2024.01.30"]
[Round "7"]
[White "jinbojinbo"]
[Black "Slovineanu"]
[Result "1-0"]
[WhiteElo "2631"]
[BlackElo "2452"]
[TimeControl "180+1"]
[EndTime "15:16:37 PST"]
[Termination "jinbojinbo won on time"]

1. Nf3 {[%clk 0:03:00.9]} 1... Nf6 {[%clk 0:02:58.6]} 2. e3 {[%clk 0:03:01]}
2... d5 {[%clk 0:02:58.3]} 3. b3 {[%clk 0:03:00.6]} 3... e6 {[%clk 0:02:54.1]}
4. Bb2 {[%clk 0:03:00.3]} 4... c5 {[%clk 0:02:54.3]} 5. c4 {[%clk 0:03:00.7]}
5... Nc6 {[%clk 0:02:53.5]} 6. cxd5 {[%clk 0:03:00.6]} 6... exd5 {[%clk
0:02:53.4]} 7. Bb5 {[%clk 0:03:00.5]} 7... Bd6 {[%clk 0:02:36.2]} 8. O-O {[%clk
0:02:57.8]} 8... O-O {[%clk 0:02:35.9]} 9. d4 {[%clk 0:02:57.6]} 9... a6 {[%clk
0:02:35.1]} 10. Bxc6 {[%clk 0:02:55.7]} 10... bxc6 {[%clk 0:02:35.3]} 11. dxc5
{[%clk 0:02:55.7]} 11... Bxc5 {[%clk 0:02:35.4]} 12. Qc2 {[%clk 0:02:55.3]}
12... Bd6 {[%clk 0:02:27.6]} 13. Qxc6 {[%clk 0:02:48.2]} 13... Bg4 {[%clk
0:02:22.4]} 14. Nbd2 {[%clk 0:02:43.8]} 14... Rc8 {[%clk 0:02:11.7]} 15. Qxa6
{[%clk 0:02:43.2]} 15... Rc2 {[%clk 0:02:11.4]} 16. Bd4 {[%clk 0:02:42.4]} 16...
Ne4 {[%clk 0:02:07.6]} 17. Qd3 {[%clk 0:02:39.4]} 17... Nxd2 {[%clk 0:01:39.5]}
18. Nxd2 {[%clk 0:02:38.9]} 18... Qc7 {[%clk 0:01:06.5]} 19. h3 {[%clk
0:02:37.9]} 19... Bh5 {[%clk 0:01:05.9]} 20. Nf3 {[%clk 0:02:01.8]} 20... Bxf3
{[%clk 0:01:02.1]} 21. gxf3 {[%clk 0:02:02.7]} 21... Rc8 {[%clk 0:01:00.5]} 22.
a4 {[%clk 0:02:00.8]} 22... Bb4 {[%clk 0:00:54.1]} 23. Qf5 {[%clk 0:02:00.3]}
23... Qd8 {[%clk 0:00:29.4]} 24. Kh1 {[%clk 0:01:57.8]} 24... R8c6 {[%clk
0:00:26.4]} 25. Rg1 {[%clk 0:01:56.7]} 25... Bf8 {[%clk 0:00:21.4]} 26. Rg2
{[%clk 0:01:50.7]} 26... Rd2 {[%clk 0:00:13.4]} 27. Rag1 {[%clk 0:01:50.1]}
27... g6 {[%clk 0:00:12.6]} 28. Qf4 {[%clk 0:01:46.1]} 28... Bg7 {[%clk
0:00:10.9]} 29. Bxg7 {[%clk 0:01:42.4]} 29... Kxg7 {[%clk 0:00:11.2]} 30. Qe5+
{[%clk 0:01:36.7]} 30... Kg8 {[%clk 0:00:10.7]} 31. b4 {[%clk 0:01:31.9]} 31...
Qd7 {[%clk 0:00:10.5]} 32. b5 {[%clk 0:01:28.9]} 32... Rcc2 {[%clk 0:00:09]} 33.
Qg3 {[%clk 0:01:26.6]} 33... Ra2 {[%clk 0:00:07.6]} 34. Rb1 {[%clk 0:01:25.2]}
34... Rxa4 {[%clk 0:00:07]} 35. b6 {[%clk 0:01:25.5]} 35... Qb7 {[%clk
0:00:06.9]} 36. Qc7 {[%clk 0:01:19]} 36... Qxc7 {[%clk 0:00:02.1]} 37. bxc7
{[%clk 0:01:18.7]} 37... Rc4 {[%clk 0:00:01.5]} 38. Rb8+ {[%clk 0:01:18.9]} 1-0

[Event "Late-Titled-Tuesday-Blitz-January-30-2024"]
[Site "Chess.com"]
[Date "2024.01.30"]
[Round "7"]
[White "Flaccidmoves"]
[Black "BestestBP"]
[Result "1-0"]
[WhiteElo "2451"]
[BlackElo "2264"]
[TimeControl "180+1"]
[EndTime "15:16:41 PST"]
[Termination "Flaccidmoves won on time"]

1. e4 {[%clk 0:03:00.9]} 1... e5 {[%clk 0:02:58.2]} 2. Bc4 {[%clk 0:02:59.8]}
2... Nf6 {[%clk 0:02:56.9]} 3. d3 {[%clk 0:02:59.8]} 3... c6 {[%clk 0:02:56.9]}
4. Nc3 {[%clk 0:02:58]} 4... d5 {[%clk 0:02:56.1]} 5. Bb3 {[%clk 0:02:58.2]}
5... Bb4 {[%clk 0:02:52.3]} 6. Bd2 {[%clk 0:02:55.4]} 6... O-O {[%clk 0:02:49]}
7. Nge2 {[%clk 0:02:53.9]} 7... Bg4 {[%clk 0:02:43.5]} 8. f3 {[%clk 0:02:52]}
8... Bh5 {[%clk 0:02:39.8]} 9. O-O {[%clk 0:02:49.4]} 9... Qb6+ {[%clk
0:02:34.3]} 10. Kh1 {[%clk 0:02:49]} 10... Rd8 {[%clk 0:02:31.2]} 11. Ng3 {[%clk
0:02:48.7]} 11... Bg6 {[%clk 0:02:30.5]} 12. Qe2 {[%clk 0:02:38.8]} 12... Na6
{[%clk 0:02:28.8]} 13. exd5 {[%clk 0:02:30.5]} 13... Nxd5 {[%clk 0:02:27.4]} 14.
Qxe5 {[%clk 0:02:21.7]} 14... Bd6 {[%clk 0:02:19]} 15. Qg5 {[%clk 0:02:17.3]}
15... Nab4 {[%clk 0:01:46.4]} 16. a3 {[%clk 0:02:11.3]} 16... Nxc3 {[%clk
0:01:45.9]} 17. Bxc3 {[%clk 0:02:12.2]} 17... Nd5 {[%clk 0:01:46]} 18. Bd2
{[%clk 0:01:59]} 18... h6 {[%clk 0:01:36]} 19. Qg4 {[%clk 0:01:55.5]} 19... Kh7
{[%clk 0:01:18.9]} 20. Rae1 {[%clk 0:01:51.5]} 20... Nf6 {[%clk 0:01:18.6]} 21.
Qh4 {[%clk 0:01:46.4]} 21... Re8 {[%clk 0:01:10.5]} 22. Bxh6 {[%clk 0:01:45.1]}
22... gxh6 {[%clk 0:01:06.8]} 23. Qxf6 {[%clk 0:01:45.5]} 23... Rxe1 {[%clk
0:00:56]} 24. Rxe1 {[%clk 0:01:45]} 24... Bxg3 {[%clk 0:00:56.2]} 25. hxg3
{[%clk 0:01:43]} 25... Qf2 {[%clk 0:00:28.7]} 26. Qe5 {[%clk 0:01:41.7]} 26...
Rd8 {[%clk 0:00:14.2]} 27. Re2 {[%clk 0:01:36]} 27... Qf1+ {[%clk 0:00:14.2]}
28. Kh2 {[%clk 0:01:36.4]} 28... Qc1 {[%clk 0:00:13.3]} 29. Qf6 {[%clk
0:01:32.9]} 29... Rf8 {[%clk 0:00:11.2]} 30. Re7 {[%clk 0:01:30.3]} 30... Qg5
{[%clk 0:00:06]} 31. Qxg5 {[%clk 0:01:27.5]} 31... hxg5 {[%clk 0:00:06.9]} 32.
Rxb7 {[%clk 0:01:27.4]} 32... a5 {[%clk 0:00:05.2]} 33. Rc7 {[%clk 0:01:25.9]}
33... Rb8 {[%clk 0:00:03.6]} 34. Rxc6 {[%clk 0:01:22.8]} 34... a4 {[%clk
0:00:03.6]} 35. Bxa4 {[%clk 0:01:23]} 35... Rxb2 {[%clk 0:00:03.9]} 36. Bb3
{[%clk 0:01:22.8]} 36... Rb1 {[%clk 0:00:02.6]} 37. a4 {[%clk 0:01:20.8]} 37...
Ra1 {[%clk 0:00:01.4]} 38. d4 {[%clk 0:01:19.8]} 38... Kg7 {[%clk 0:00:01.5]}
39. d5 {[%clk 0:01:19.5]} 39... g4 {[%clk 0:00:01.1]} 40. fxg4 {[%clk
0:01:18.5]} 1-0

[Event "Late-Titled-Tuesday-Blitz-January-30-2024"]
[Site "Chess.com"]
[Date "2024.01.30"]
[Round "7"]
[White "jefferyx"]
[Black "Elsa167"]
[Result "0-1"]
[WhiteElo "3008"]
[BlackElo "2893"]
[TimeControl "180+1"]
[EndTime "15:16:44 PST"]
[Termination "Elsa167 won by resignation"]

1. e4 {[%clk 0:03:00.9]} 1... e6 {[%clk 0:02:59.7]} 2. d4 {[%clk 0:03:01.6]}
2... d5 {[%clk 0:03:00.3]} 3. e5 {[%clk 0:03:02.2]} 3... c5 {[%clk 0:03:00.8]}
4. c3 {[%clk 0:03:02.8]} 4... Nc6 {[%clk 0:03:01.3]} 5. Nf3 {[%clk 0:03:03.3]}
5... Qb6 {[%clk 0:03:01.8]} 6. Be2 {[%clk 0:03:01.9]} 6... Bd7 {[%clk
0:02:59.9]} 7. O-O {[%clk 0:03:00.7]} 7... Rc8 {[%clk 0:02:48.1]} 8. a3 {[%clk
0:02:03.5]} 8... cxd4 {[%clk 0:02:40.4]} 9. cxd4 {[%clk 0:02:04.4]} 9... Na5
{[%clk 0:02:39.1]} 10. Nbd2 {[%clk 0:02:03.2]} 10... Bb5 {[%clk 0:02:32.8]} 11.
b4 {[%clk 0:01:44]} 11... Bxe2 {[%clk 0:02:32]} 12. Qxe2 {[%clk 0:01:44.9]}
12... Nc6 {[%clk 0:02:22.8]} 13. Nb3 {[%clk 0:01:44.3]} 13... Nge7 {[%clk
0:02:20.4]} 14. Qd3 {[%clk 0:01:36.6]} 14... a6 {[%clk 0:02:03.2]} 15. Bd2
{[%clk 0:01:36.1]} 15... Nf5 {[%clk 0:01:52.1]} 16. g4 {[%clk 0:01:35.7]} 16...
Nfe7 {[%clk 0:01:52.3]} 17. Rfc1 {[%clk 0:01:35.5]} 17... h5 {[%clk 0:01:52.2]}
18. h3 {[%clk 0:01:35.1]} 18... hxg4 {[%clk 0:01:51.8]} 19. hxg4 {[%clk
0:01:36]} 19... Ng6 {[%clk 0:01:49]} 20. Rc2 {[%clk 0:01:31.6]} 20... Be7 {[%clk
0:01:47.5]} 21. Rac1 {[%clk 0:01:31.7]} 21... Kd7 {[%clk 0:01:09.6]} 22. Kg2
{[%clk 0:01:31.4]} 22... Nh4+ {[%clk 0:01:03.3]} 23. Nxh4 {[%clk 0:01:31.3]}
23... Rxh4 {[%clk 0:01:04.2]} 24. Qf3 {[%clk 0:01:22.4]} 24... Rch8 {[%clk
0:00:58.8]} 25. Bf4 {[%clk 0:01:10.5]} 25... Qb5 {[%clk 0:00:43.2]} 26. Bg3
{[%clk 0:01:05.9]} 26... Rh3 {[%clk 0:00:38.4]} 27. Qxf7 {[%clk 0:01:00.2]}
27... Kd8 {[%clk 0:00:36.5]} 28. Qxe6 {[%clk 0:00:53.6]} 28... Qd3 {[%clk
0:00:33.3]} 29. Qxd5+ {[%clk 0:00:47.4]} 29... Ke8 {[%clk 0:00:33.5]} 30. Qf3
{[%clk 0:00:38.7]} 30... Rh2+ {[%clk 0:00:33.3]} 31. Bxh2 {[%clk 0:00:36.1]}
31... Rxh2+ {[%clk 0:00:34.2]} 32. Kxh2 {[%clk 0:00:36.8]} 32... Qxf3 {[%clk
0:00:34.9]} 0-1

[Event "Late-Titled-Tuesday-Blitz-January-30-2024"]
[Site "Chess.com"]
[Date "2024.01.30"]
[Round "7"]
[White "shirovin"]
[Black "GoValya"]
[Result "1-0"]
[WhiteElo "2064"]
[BlackElo "2278"]
[TimeControl "180+1"]
[EndTime "15:16:44 PST"]
[Termination "shirovin won on time"]

1. e4 {[%clk 0:03:00.9]} 1... e6 {[%clk 0:02:59.9]} 2. d3 {[%clk 0:02:59.9]}
2... d5 {[%clk 0:03:00.6]} 3. Nd2 {[%clk 0:02:59.9]} 3... b6 {[%clk 0:03:00.2]}
4. Ngf3 {[%clk 0:02:54.9]} 4... Bb7 {[%clk 0:02:58.8]} 5. g3 {[%clk 0:02:49.8]}
5... Nf6 {[%clk 0:02:57.1]} 6. Qe2 {[%clk 0:02:42.8]} 6... Be7 {[%clk
0:02:54.8]} 7. Bg2 {[%clk 0:02:42.3]} 7... O-O {[%clk 0:02:54.6]} 8. O-O {[%clk
0:02:41.7]} 8... c5 {[%clk 0:02:54.3]} 9. e5 {[%clk 0:02:39.9]} 9... Nfd7 {[%clk
0:02:54.2]} 10. c4 {[%clk 0:02:39.9]} 10... d4 {[%clk 0:02:51.1]} 11. Ne4 {[%clk
0:02:39.4]} 11... h6 {[%clk 0:02:47]} 12. h4 {[%clk 0:02:28.1]} 12... Nc6 {[%clk
0:02:46.4]} 13. Bf4 {[%clk 0:02:26.8]} 13... f6 {[%clk 0:02:27.8]} 14. exf6
{[%clk 0:02:17.8]} 14... Nxf6 {[%clk 0:02:28.7]} 15. Nxf6+ {[%clk 0:02:17.1]}
15... Rxf6 {[%clk 0:02:29.3]} 16. Ne5 {[%clk 0:02:13.1]} 16... Rc8 {[%clk
0:02:10.5]} 17. Ng4 {[%clk 0:02:07.1]} 17... Rxf4 {[%clk 0:01:42]} 18. gxf4
{[%clk 0:02:05.7]} 18... Qd7 {[%clk 0:01:25.2]} 19. Ne5 {[%clk 0:02:04.9]} 19...
Nxe5 {[%clk 0:01:21.9]} 20. fxe5 {[%clk 0:01:52.9]} 20... Rf8 {[%clk 0:01:07.4]}
21. f4 {[%clk 0:01:45]} 21... Bxh4 {[%clk 0:01:02.5]} 22. Bxb7 {[%clk
0:01:36.4]} 22... Qxb7 {[%clk 0:01:01.3]} 23. Qg4 {[%clk 0:01:37]} 23... Qe7
{[%clk 0:00:44.5]} 24. f5 {[%clk 0:01:36.1]} 24... Bg5 {[%clk 0:00:36]} 25. fxe6
{[%clk 0:01:25.1]} 25... Be3+ {[%clk 0:00:35.9]} 26. Kg2 {[%clk 0:01:24.7]}
26... Qb7+ {[%clk 0:00:27.8]} 27. Kh2 {[%clk 0:01:14.6]} 27... Rxf1 {[%clk
0:00:06]} 28. Rxf1 {[%clk 0:01:13]} 28... Qc7 {[%clk 0:00:06.5]} 29. Qf5 {[%clk
0:00:58.8]} 29... Qd8 {[%clk 0:00:03.5]} 30. Qf7+ {[%clk 0:00:54.9]} 30... Kh7
{[%clk 0:00:03.1]} 31. e7 {[%clk 0:00:53.9]} 1-0

[Event "Late-Titled-Tuesday-Blitz-January-30-2024"]
[Site "Chess.com"]
[Date "2024.01.30"]
[Round "7"]
[White "ninguno46"]
[Black "JCVanDamme10"]
[Result "1-0"]
[WhiteElo "2509"]
[BlackElo "2307"]
[TimeControl "180+1"]
[EndTime "15:16:45 PST"]
[Termination "ninguno46 won on time"]

1. e4 {[%clk 0:02:58.8]} 1... c5 {[%clk 0:02:59.6]} 2. Nc3 {[%clk 0:02:57.2]}
2... Nc6 {[%clk 0:02:58.3]} 3. f4 {[%clk 0:02:57.7]} 3... g6 {[%clk 0:02:56.8]}
4. Nf3 {[%clk 0:02:57.4]} 4... Bg7 {[%clk 0:02:57.2]} 5. Bb5 {[%clk 0:02:57]}
5... Nd4 {[%clk 0:02:54.8]} 6. O-O {[%clk 0:02:56.9]} 6... a6 {[%clk 0:02:54.2]}
7. Bd3 {[%clk 0:02:55.7]} 7... e6 {[%clk 0:02:54]} 8. Nxd4 {[%clk 0:02:55.1]}
8... cxd4 {[%clk 0:02:53.5]} 9. Ne2 {[%clk 0:02:54.8]} 9... Ne7 {[%clk
0:02:52.6]} 10. f5 {[%clk 0:02:47.2]} 10... Be5 {[%clk 0:02:18]} 11. c3 {[%clk
0:02:43.5]} 11... d5 {[%clk 0:02:09.2]} 12. fxe6 {[%clk 0:02:35.6]} 12... Bxe6
{[%clk 0:02:06.2]} 13. cxd4 {[%clk 0:02:33.2]} 13... dxe4 {[%clk 0:02:04.2]} 14.
Bxe4 {[%clk 0:02:32.8]} 14... Bxd4+ {[%clk 0:02:04.7]} 15. Kh1 {[%clk
0:02:31.3]} 15... O-O {[%clk 0:01:59]} 16. Nxd4 {[%clk 0:02:30.6]} 16... Qxd4
{[%clk 0:01:58.3]} 17. d3 {[%clk 0:02:29.8]} 17... f5 {[%clk 0:01:48.6]} 18.
Bxb7 {[%clk 0:02:25.3]} 18... Ra7 {[%clk 0:01:49.2]} 19. Qe1 {[%clk 0:02:21.4]}
19... Qf6 {[%clk 0:01:37.5]} 20. Bg5 {[%clk 0:02:12.6]} 20... Qf7 {[%clk
0:01:30.1]} 21. Bf3 {[%clk 0:02:10.5]} 21... Nd5 {[%clk 0:01:11.8]} 22. Bh6
{[%clk 0:02:08.6]} 22... Re8 {[%clk 0:01:10.7]} 23. Qe5 {[%clk 0:01:59.6]} 23...
Nf6 {[%clk 0:01:04.5]} 24. Bg5 {[%clk 0:01:46.7]} 24... Kg7 {[%clk 0:00:53.3]}
25. Rae1 {[%clk 0:01:42.4]} 25... h6 {[%clk 0:00:45.5]} 26. Be3 {[%clk 0:01:33]}
26... Rd7 {[%clk 0:00:40.5]} 27. Bd4 {[%clk 0:01:28.1]} 27... Rxd4 {[%clk
0:00:21]} 28. Qxd4 {[%clk 0:01:27.5]} 28... Bxa2 {[%clk 0:00:21.5]} 29. Bc6
{[%clk 0:01:03.6]} 29... Rxe1 {[%clk 0:00:19.3]} 30. Rxe1 {[%clk 0:01:03.1]}
30... Be6 {[%clk 0:00:13.8]} 31. Qd6 {[%clk 0:01:01.5]} 1-0